{"text_format":"1","workbook":"xlsx","n_sheets":2,"sheets":["Summary Sheet","Price Bid Format"],"not_rendered":{"charts":0,"images":0,"macros":1,"external_links":0,"defined_names":1,"comments":0,"pivot_tables":0},"unopened":[],"bounds":{"document_bytes":16777216,"sheet_cells":100000,"rows_first":2000,"rows_last":500,"rows_between":2000,"halvings":0,"cell_chars":16384,"cell_head_chars":4096},"cells_cut":0,"cells_raw":0,"read":"whole","date_system":"1900"}

{"sheet":"Summary Sheet","index":0,"n_rows":3,"n_cols":3,"rows_kept":3,"cut":false,"hidden":false,"merged":[[0,0,0,2],[1,0,1,1]]}
["Summary Sheet"]
["Name of Bidder ( to be filled by Bidder)"]
["Values in INR","Total Evaluated Price",{"$f":"'Price Bid Format'!J29","v":0}]

{"sheet":"Price Bid Format","index":1,"n_rows":29,"n_cols":10,"rows_kept":29,"cut":false,"hidden":false,"merged":[[28,0,28,1],[28,2,28,8],[0,0,0,9],[1,0,1,9]]}
["Selection of Manufacturer for supply of Transmission Tower for testing of Design including Preparation of structural drawings, shop drawings, proto-corrected drawings, Bill of Material (BoM) and supply of the same to the Tower Testing Agency selected by Employer"]
["Price Bid Format"]
["SI. No.","Item Description","Unit\n(UoM)","Quantity","Unit ExW Price \n(INR)","Percentage GST/Unit\n(%)","GST Amount/Unit\n(INR)","Any Other Taxes \n(If Applicable) \n(INR/Unit)","Unit Price \n(Incl. all Taxes)\nINR)","Total Price\n(INR)"]
[1,2,3,4,5,6,"7 = 6 x 5",8,"9 = 5 + 7 + 8","10 = 9 x 4"]
["(A)","220 kV D/C Tower Type 'DA+9' (Wind Zonc-6, 55 m/s) with 25mm Ice (Single DEER) "]
[1,"Preparation of structural drawings ,shop drawings . proto corrected structural and shop drawing , bill of materials and their revisions as applicable as per Employer's supplied single line diagram of towers. This item includes all types of body extension and leg extensions as per single line diagram and as detailed in the specification \n\n220 kV D/C Tower Type 'DA+9' (Wind Zonc-6, 55 m/s) with 25mm Ice (Single DEER)"]
["a) ","Normal Tower","Nos",1,null,null,{"$f":"F7*E7","v":0},null,{"$f":"E7+G7+H7","v":0},{"$f":"I7*D7","v":0}]
["b) ","Leg Extensions","Nos",10,null,null,{"$f":"F8*E8","v":0},null,{"$f":"E8+G8+H8","v":0},{"$f":"I8*D8","v":0}]
[2,"Fabrication . galvanization, proto-assembly of steel tower structures as per approved fabrication drawings,  including nuts, bolts, spring washer with required accessories complete from the manufacturer's works to the test bed. The price quoted shall include all taxes & duties as applicable and also shall be with due consideration of suitable price reduction on account of scrap tower materials after completion of tests. \n\n220 kV D/C Tower Type 'DA+9' {Wind Zone-6, 55 m/s) with 25mm Ice (Single DEER) ","MT",19,null,null,0,null,{"$f":"E9+G9+H9","v":0},{"$f":"I9*D9","v":0}]
["(B)","220 kV D/C Tower Type 'DB+9' (Wind Zonc-6, 55 m/s) with 25mm Ice (Single DEER) "]
[1,"Preparation of structural drawings ,shop drawings . proto corrected structural and shop drawing , bill of materials and their revisions as applicable as per Employer's supplied single line diagram of towers. This item includes all types of body extension and leg extensions as per single line diagram and as detailed in the specification \n\n220 kV D/C Tower Type 'DB+9' (Wind Zonc-6, 55 m/s) with 25mm Ice (Single DEER) ",null,null,null,null,null,null,{"$f":"E11+G11+H11","v":0}]
["a) ","Normal Tower","Nos",1,null,null,{"$f":"F12*E12","v":0},null,{"$f":"E12+G12+H12","v":0},{"$f":"I12*D12","v":0}]
["b) ","Leg Extensions","Nos",10,null,null,0,null,0,0]
[2,"Fabrication . galvanization, proto-assembly of steel tower structures as per approved fabrication drawings,  including nuts, bolts, spring washer with required accessories complete from the manufacturer's works to the test bed. The price quoted shall include all taxes & duties as applicable and also shall be with due consideration of \nsuitable price reduction on account of scrap tower materials after completion \nof tests. \n220 kV D/C Tower Type 'DB+9' {Wind Zone-6, 55 m/s) with 25mm Ice (Single DEER) ","MT",27,null,null,0,null,0,0]
["(C)","220 kV D/C Tower Type 'DC+9' (Wind Zonc-6, 55 m/s) with 25mm Ice (Single DEER) "]
[1,"Preparation of structural drawings ,shop drawings . proto corrected structural and shop drawing , bill of materials and their revisions as applicable as per Employer's supplied single line diagram of towers. This item includes all types of body extension and leg extensions as per single line diagram and as detailed in the specification \n\n220 kV D/C Tower Type 'DC+9' (Wind Zonc-6, 55 m/s) with 25mm Ice (Single DEER) "]
["a) ","a) Normal Tower","Nos",1,null,null,{"$f":"F17*E17","v":0},null,{"$f":"E17+G17+H17","v":0},{"$f":"I17*D17","v":0}]
["b) ","b) Leg Extensions","Nos",10,null,null,0,null,0,0]
[2,"Fabrication . galvanization, proto-assembly of steel tower structures as per approved fabrication drawings,  including nuts, bolts, spring washer with required accessories complete from the manufacturer's works to the test bed. The price quoted shall include all taxes & duties as applicable and also shall be with due consideration of \nsuitable price reduction on account of scrap tower materials after completion \nof tests. \n220 kV D/C Tower Type 'DC+9' {Wind Zone-6, 55 m/s) with 25mm Ice (Single DEER) ","MT",30,null,null,0,null,0,0]
["(D)","220 kV D/C Tower Type 'DD+9' (Wind Zonc-6, 55 m/s) with 25mm\nIce (Single DEER) "]
[null,"Preparation of structural drawings ,shop drawings . proto corrected structural and shop drawing , bill of materials and their revisions as applicable as per Employer's supplied single line diagram of towers. This item includes all types of body extension and leg extensions as per single line diagram and as detailed in the specification \n\n220 kV D/C Tower Type 'DD+9' (Wind Zonc-6, 55 m/s) with 25mm Ice (Single DEER) "]
["a) ","Normal Tower","Nos",1,null,null,{"$f":"F22*E22","v":0},null,{"$f":"E22+G22+H22","v":0},{"$f":"I22*D22","v":0}]
["b) ","Leg Extensions","Nos",10,null,null,0,null,0,0]
[2,"Fabrication . galvanization, proto-assembly of steel tower structures as per approved fabrication drawings,  including nuts, bolts, spring washer with required accessories complete from the manufacturer's works to the test bed. The price quoted shall include all taxes & duties as applicable and also shall be with due consideration of \nsuitable price reduction on account of scrap tower materials after completion \nof tests. \n220 kV D/C Tower Type 'DD+9' {Wind Zone-6, 55 m/s) with 25mm Ice (Single DEER) ","MT",40,null,null,0,null,0,0]
["(E)","Transportation & Insurance "]
[1,"Transportation of  steel tower structures as per approved fabrication drawings, \nincluding nuts, bolts, spring washer with required accessories complete from \nthe manufacturer's works to the test bed. "]
["a)","To Tower Testing Station CPRI-Bangalore","MT",58,null,null,{"$f":"F27*E27","v":0},null,{"$f":"E27+G27+H27","v":0},{"$f":"I27*D27","v":0}]
["b)","To Tower Testing Station SERC-Chennai","MT",58,null,null,0,null,0,0]
["Grand Total ",null,{"$f":"SpellNumber($J29)","v":"No Rupees and No Paisa"},null,null,null,null,null,null,{"$f":"J7+J8+J9+J12+J13+J14+J17+J18+J19+J22+J23+J24+J27+J28","v":0}]